[Event "French-ch U16-U18 2024"]
[Site "Agen"]
[Date "2024.04.20"]
[Round "8.20"]
[White "Bat, Bilguun"]
[Black "Okhanian, Giorgi"]
[Result "1-0"]
[ECO "D03"]
[WhiteElo "2360"]
[BlackElo "1849"]
[Annotator "TA"]
[PlyCount "56"]
[EventDate "2024.04.14"]
[EventType "swiss"]
[EventCountry "FRA"]
[SourceTitle "playchess.com"]
[Source "ChessBase"]
[SourceQuality "1"]
[TimeControl "5400+30"]

{[%evp 9,56,8,19,18,30,31,29,15,18,0,0,-54,-31,-63,-35,-24,11,12,245,241,245,120,244,247,254,234,222,232,254,224,369,366,364,361,347,275,279,213,218,213,293,285,287,273,342,352,436,434,1183]} 1. d4 {[%emt 0:00:25]} Nf6 {[%emt 0:00:12]} 2. Nf3 {[%emt 0:00:20]} e6 {[%emt 0:00:28]} 3. Bg5 {[%emt 0:00:46]} d5 {[%emt 0:01:18]} 4. e3 {[%emt 0:00:25]} Bd6 {[%emt 0:03:23]} 5. Nbd2 {[%emt 0:00:46]} Nbd7 {[%emt 0:01:41]} 6. c4 {[%emt 0:03:57]} c6 {[%emt 0:03:13]} 7. Bd3 {[%emt 0:01:54]} O-O {[%emt 0:01:00]} 8. cxd5 {[%emt 0:05:09] White has an edge.} exd5 {[%emt 0:00:43]} 9. Qc2 {[%emt 0:00:51][%cal Od3h7] Strongly threatening Bxh7+!} h6 {[%emt 0:00:47]} 10. h4 {[%emt 0:00:58]} Re8 {[%emt 0:02:26]} (10... hxg5 $6 11. hxg5 Re8 (11... Ne4 12. Bxe4 dxe4 13. Qxe4 $11) 12. gxf6 Nxf6 13. O-O-O $11) 11. O-O-O {[%emt 0:03:23][%cal Od3h7]} c5 {[%emt 0:09:43]} (11... hxg5 12. hxg5 Ng4 13. Bh7+ Kf8 14. Nb3 $17) 12. Bxf6 {[%emt 0:07:31]} Qxf6 {[%emt 0:31:35]} (12... Nxf6 $5 13. dxc5 Bd7 $16) 13. g4 {[%emt 0:01:24]} Nf8 $2 {[%emt 0:00:20] White now steadily converts the win.} (13... Qe7 $11 {and Black has nothing to worry.}) 14. g5 $18 {[%emt 0:04:36]} (14. dxc5 Bxg4 15. Qa4 (15. cxd6 $2 Rac8 $19) 15... Bd7 $17 (15... Bxf3 16. Nxf3 Qxf3 17. cxd6 $17)) 14... Qe7 {[%emt 0:00:33] [#]} 15. gxh6 {[%emt 0:09:34]} (15. dxc5 $1 $18 {is the precise move to win.} Bxc5 16. gxh6 gxh6 17. Kb1) 15... gxh6 {[%emt 0:01:38]} (15... c4 $16 {was worth a try.} 16. hxg7 cxd3 17. gxf8=R+ (17. gxf8=Q+ Kxf8 18. Qb3 Qc7+ 19. Kb1 Qc2+ 20. Qxc2 dxc2+ 21. Kxc2 Bf5+ 22. Kb3 Re6 $16) 17... Kxf8 18. Qxd3 Qf6) 16. Rhg1+ {[%emt 0:01:51]} Kh8 {[%emt 0:01:57]} 17. dxc5 {[%emt 0:01:12]} Bxc5 {[%emt 0:01:15]} 18. Qc3+ {[%emt 0:01:13]} f6 {[%emt 0:00:30]} 19. Nb3 {[%emt 0:00:36]} Bd7 {[%emt 0:11:02]} (19... Bb6 $142 20. Kb1 Bh3) 20. Nxc5 {[%emt 0:09:24][%cal Od3c2] And now Bc2! would win.} (20. Qxc5 Rac8 $14) 20... Rac8 {[%emt 0:00:50] [#]} 21. Kb1 $1 {[%emt 0:05:35]} Rxc5 {[%emt 0:07:39]} 22. Qd4 {[%emt 0:03:10] Qf4 is the strong threat.} Bb5 {[%emt 0:03:52]} 23. Qf4 {[%emt 0:08:44]} Bxd3+ {[%emt 0:06:29]} 24. Rxd3 {[%emt 0:00:19]} Kh7 {[%emt 0:00:18]} 25. Qf5+ {[%emt 0:00:55]} Kh8 {[%emt 0:00:07]} 26. Nd4 {[%emt 0:03:03] aiming for Qh5.} (26. Rxd5 Rxd5 27. Qxd5 Qe4+ 28. Qxe4 Rxe4 $16) 26... Rec8 {[%emt 0:06:23]} 27. a3 {[%emt 0:01:03]} R8c7 {[%emt 0:04:04]} 28. Qf4 {[%emt 0:01:51]} Nd7 {[%emt 0:01:04] Weighted Error Value: White=0.20 (precise) /Black=0.50.  Loses game:     	---       	Black=1      Mistake:       	White=2     	Black=3      Inaccurate:     	White=1     	Black=3      OK:         	White=7     	Black=4      Best:        	White=2     	Black=3} (28... Rd7 $142 29. Qxh6+ Nh7) 1-0

[Event "French-ch U16-U18 2024"]
[Site "Agen"]
[Date "2024.04.21"]
[Round "9.1"]
[White "Bat, Anu"]
[Black "Alsaied, Zeina"]
[Result "1-0"]
[ECO "D00"]
[WhiteElo "1887"]
[BlackElo "1735"]
[Annotator "NA RC COMBH"]
[PlyCount "111"]
[EventDate "2024.04.14"]
[EventType "swiss"]
[EventCountry "FRA"]
[SourceTitle "playchess.com"]
[Source "ChessBase"]
[SourceQuality "1"]
[TimeControl "5400+30"]

1. d4 {[%emt 0:00:04]} d5 {[%emt 0:00:30]} 2. Nc3 {[%emt 0:00:13]} Nf6 {[%emt 0:02:14]} 3. Bf4 {[%emt 0:00:11]} a6 {[%emt 0:02:47]} 4. e3 {[%emt 0:00:20]} Bf5 {[%emt 0:01:31]} 5. f3 {[%emt 0:00:31]} e6 {[%emt 0:08:10]} 6. g4 {[%emt 0:01:00] D00: 1 d4 d5: Unusual lines.} Bg6 {[%emt 0:03:43]} 7. h4 {[%emt 0:00:19]} h5 {[%emt 0:07:51]} 8. g5 {[%emt 0:03:05]} Nfd7 {[%emt 0:00:57]} 9. Nh3 {[%emt 0:01:09]} Nc6 {[%emt 0:09:51]} (9... c5 $1 $15 {is more appropriate.}) 10. a3 {[%emt 0:01:31]} Bd6 {[%emt 0:04:52]} (10... Nb6 $11) 11. Bxd6 {[%emt 0:04:16]} cxd6 {[%emt 0:00:28]} 12. Nf4 {[%emt 0:00:34]} Bf5 {[%emt 0:02:37]} 13. Bd3 {[%emt 0:27:00]} Bxd3 {[%emt 0:03:04]} 14. Qxd3 {[%emt 0:00:39]} Ne7 {[%emt 0:07:41]} 15. g6 {[%emt 0:01:50]} Nf5 {[%emt 0:18:31]} (15... Rh6 $142) 16. Ncxd5 {[%emt 0:08:17]} Nxh4 {[%emt 0:10:29]} 17. Nc7+ {[%emt 0:00:36]} Qxc7 {[%emt 0:02:05] [#]} 18. gxf7+ $1 {[%emt 0:02:21]} Kxf7 {[%emt 0:01:53]} 19. Rxh4 {[%emt 0:00:09]} Rh6 {[%emt 0:01:45]} (19... Qa5+ $16 {keeps fighting.} 20. Kf2 Qf5) 20. Rxh5 {[%emt 0:02:29]} (20. Nxh5 $2 {is the wrong capture.} Qa5+ (20... Nf6 $2 21. O-O-O $19) 21. b4 Qg5 $19) 20... Rxh5 $2 {[%emt 0:03:49]} (20... Rah8) 21. Qg6+ {[%emt 0:00:08]} Kg8 {[%emt 0:04:20]} 22. Nxh5 {[%emt 0:00:30]} Nb6 {[%emt 0:01:30]} 23. Qxe6+ {[%emt 0:04:47]} Qf7 {[%emt 0:00:48]} 24. Qxf7+ {[%emt 0:00:14]} Kxf7 {[%emt 0:00:01]} 25. O-O-O {[%emt 0:00:26]} Nd5 {[%emt 0:00:59]} 26. e4 {[%emt 0:00:29]} Ne3 {[%emt 0:00:29]} 27. Rg1 {[%emt 0:00:51]} g6 {[%emt 0:00:20]} 28. Nf4 {[%emt 0:00:36]} Rg8 $2 {[%emt 0:00:38]} (28... Rh8 29. Kd2 (29. Nxg6 Rg8 $16) (29. Rxg6 Rh4 $16) 29... Nc4+ 30. Kd3 (30. Kc3 Rc8 $18) 30... Nxb2+ 31. Kc3 Na4+ 32. Kb4 b5 33. Rxg6 (33. Nxg6 Rh2 $18) 33... Rh4) 29. b3 {[%emt 0:00:44]} g5 {[%emt 0:00:20]} 30. Nd3 {[%emt 0:01:19]} g4 {[%emt 0:00:30]} 31. Kd2 {[%emt 0:01:11]} gxf3 {[%emt 0:00:44]} 32. Rxg8 {[%emt 0:00:14]} f2 {[%emt 0:00:29]} 33. Nxf2 {[%emt 0:00:12]} Nf1+ {[%emt 0:00:28]} 34. Ke1 {[%emt 0:00:06]} Kxg8 {[%emt 0:00:24]} 35. Kxf1 {[%emt 0:00:05]} Kf7 {[%emt 0:00:39]} 36. Ke2 {[%emt 0:00:06]} Ke7 {[%emt 0:00:32]} 37. Kd3 {[%emt 0:00:06]} Ke6 {[%emt 0:00:23]} 38. c4 {[%emt 0:00:33]} b6 {[%emt 0:00:29]} 39. b4 {[%emt 0:00:11]} Kd7 {[%emt 0:00:32]} 40. d5 {[%emt 0:00:08]} Kc7 {[%emt 0:00:36]} 41. Kd4 {[%emt 0:00:09]} Kd7 {[%emt 0:00:25]} 42. e5 {[%emt 0:00:15]} Ke7 {[%emt 0:00:34]} 43. exd6+ {[%emt 0:00:09]} Kxd6 {[%emt 0:00:22]} 44. Ne4+ {[%emt 0:00:04]} Kd7 {[%emt 0:00:14]} 45. Ke5 {[%emt 0:00:05]} Ke7 {[%emt 0:00:45]} 46. d6+ {[%emt 0:00:06]} Kd7 {[%emt 0:00:15]} 47. Nf6+ {[%emt 0:00:07]} Kd8 {[%emt 0:00:12]} 48. Ke6 {[%emt 0:00:10]} b5 {[%emt 0:00:33]} 49. cxb5 {[%emt 0:00:12]} a5 {[%emt 0:00:42]} 50. bxa5 {[%emt 0:00:09]} Kc8 {[%emt 0:00:12]} 51. Ke7 {[%emt 0:00:07]} Kb7 {[%emt 0:00:38]} 52. d7 {[%emt 0:00:06]} Ka7 {[%emt 0:00:28]} 53. d8=Q {[%emt 0:00:07]} Kb7 {[%emt 0:00:15]} 54. a6+ {[%emt 0:00:06]} Ka7 {[%emt 0:00:10]} 55. Qc7+ {[%emt 0:00:03]} Ka8 {[%emt 0:00:08]} 56. Qb7# {[%emt 0:00:03]} 1-0

[Event "French-ch U16-U18 2024"]
[Site "Agen"]
[Date "2024.04.21"]
[Round "9.2"]
[White "Grisoni, Emma"]
[Black "Pereira-Davoine, Alana"]
[Result "0-1"]
[ECO "B23"]
[WhiteElo "1704"]
[BlackElo "1780"]
[Annotator "NA RC COMBH"]
[PlyCount "84"]
[EventDate "2024.04.14"]
[EventType "swiss"]
[EventCountry "FRA"]
[SourceTitle "playchess.com"]
[Source "ChessBase"]
[SourceQuality "1"]
[TimeControl "5400+30"]

1. e4 {[%emt 0:00:02]} c5 {[%emt 0:00:05]} 2. Nc3 {[%emt 0:00:05]} a6 {[%emt 0:00:10]} 3. g3 {[%emt 0:00:27]} b5 {[%emt 0:00:19]} 4. Bg2 {[%emt 0:00:31]} Bb7 {[%emt 0:00:11]} 5. Nh3 {[%emt 0:00:34]} e6 {[%emt 0:00:50]} 6. O-O {[%emt 0:01:43]} b4 {[%emt 0:02:39]} 7. Nb1 {[%emt 0:08:56]} Nf6 {[%emt 0:01:50]} 8. d3 {[%emt 0:02:27]} Be7 {[%emt 0:01:16]} 9. f4 {[%emt 0:10:42]} O-O {[%emt 0:01:30]} 10. Be3 {[%emt 0:02:39]} Nc6 {[%emt 0:05:08]} 11. Nd2 {[%emt 0:06:27]} a5 {[%emt 0:04:48]} 12. g4 {[%emt 0:05:03]} d5 {[%emt 0:07:28]} 13. e5 {[%emt 0:13:44]} Nd7 {[%emt 0:00:59]} 14. c3 {[%emt 0:01:26]} bxc3 {[%emt 0:04:19]} 15. bxc3 {[%emt 0:00:15]} Ba6 {[%emt 0:00:21]} 16. Qc2 {[%emt 0:06:35]} Rc8 {[%emt 0:00:36]} 17. Bf2 {[%emt 0:02:03]} Qc7 {[%emt 0:06:26]} 18. Rfc1 {[%emt 0:02:12]} d4 {[%emt 0:09:37]} 19. c4 {[%emt 0:03:17]} Nb4 {[%emt 0:00:23]} 20. Qb1 {[%emt 0:02:01]} Rb8 {[%emt 0:00:32]} 21. a3 {[%emt 0:00:29]} Nd5 {[%emt 0:00:39]} 22. Qc2 {[%emt 0:00:48]} Nc3 {[%emt 0:10:05]} 23. Nf3 {[%emt 0:05:46]} a4 {[%emt 0:02:22]} 24. Be1 {[%emt 0:03:37]} Rb3 {[%emt 0:03:14]} 25. Bxc3 {[%emt 0:03:52]} dxc3 {[%emt 0:00:21]} 26. Nf2 {[%emt 0:01:42]} Rfb8 {[%emt 0:00:28]} 27. Nd1 {[%emt 0:04:09]} Nf8 {[%emt 0:02:02]} 28. Nxc3 {[%emt 0:01:41]} Ng6 {[%emt 0:00:15]} 29. Qd2 {[%emt 0:03:22]} f6 {[%emt 0:04:48]} 30. Qe3 {[%emt 0:01:43]} fxe5 {[%emt 0:01:52]} 31. fxe5 {[%emt 0:00:10]} Rf8 {[%emt 0:03:56]} 32. Ne2 {[%emt 0:03:14]} Bb7 {[%emt 0:00:06]} 33. Nd2 {[%emt 0:02:11]} Bxg2 {[%emt 0:01:20]} 34. Kxg2 {[%emt 0:03:02]} Rb6 {[%emt 0:03:10]} 35. Nf3 {[%emt 0:00:16]} Rb2 {[%emt 0:00:28]} 36. Re1 {[%emt 0:00:45]} Qc6 {[%emt 0:03:01]} 37. Qe4 {[%emt 0:00:31]} Qxe4 {[%emt 0:00:33]} 38. dxe4 {[%emt 0:00:01]} Nf4+ {[%emt 0:00:22]} 39. Kf2 {[%emt 0:00:55]} Nd3+ {[%emt 0:00:09]} 40. Ke3 {[%emt 0:00:33]} Nxe1 {[%emt 0:00:08]} 41. Rxe1 {[%emt 0:00:01]} Rb3+ {[%emt 0:00:13]} 42. Kf2 {[%emt 0:00:42]} Rbxf3+ {[%emt 0:00:11]} 0-1

[Event "French-ch U16-U18 2024"]
[Site "Agen"]
[Date "2024.04.21"]
[Round "9.3"]
[White "Fesigny, Oceane"]
[Black "Paralieu, Emma"]
[Result "0-1"]
[ECO "C55"]
[WhiteElo "1829"]
[BlackElo "1775"]
[Annotator "NA RC COMBH"]
[PlyCount "124"]
[EventDate "2024.04.14"]
[EventType "swiss"]
[EventCountry "FRA"]
[SourceTitle "playchess.com"]
[Source "ChessBase"]
[SourceQuality "1"]
[TimeControl "5400+30"]

1. e4 {[%emt 0:00:02]} e5 {[%emt 0:00:06]} 2. Nf3 {[%emt 0:00:07]} Nc6 {[%emt 0:00:05]} 3. Bc4 {[%emt 0:00:11]} Nf6 {[%emt 0:00:07]} 4. d3 {[%emt 0:00:14]} Be7 {[%emt 0:00:10]} 5. Nc3 {[%emt 0:00:20]} d6 {[%emt 0:00:32]} 6. a4 {[%emt 0:01:29]} O-O {[%emt 0:00:41]} 7. O-O {[%emt 0:01:06]} h6 {[%emt 0:00:40]} 8. h3 {[%emt 0:06:07]} Nh7 {[%emt 0:06:12] C55: Two Knights: 4 d3, 4 d4 exd4 5 e5 and Max Lange Attack.} 9. Nd5 {[%emt 0:25:08]} Kh8 {[%emt 0:02:13]} 10. Nh2 {[%emt 0:10:08]} (10. Re1 $14) 10... Bh4 {[%emt 0:33:31]} 11. Ba2 {[%emt 0:28:57]} (11. Bd2 $14) 11... f5 {[%emt 0:18:08]} 12. exf5 {[%emt 0:06:14]} Bxf5 {[%emt 0:03:20]} 13. f4 {[%emt 0:03:29]} Qd7 {[%emt 0:14:30]} 14. Be3 {[%emt 0:07:51]} Ne7 {[%emt 0:04:25]} ({Black should play} 14... Rae8 $11) 15. Nxe7 {[%emt 0:03:54]} Qxe7 {[%emt 0:00:02]} 16. g4 {[%emt 0:00:58]} exf4 {[%emt 0:01:57]} 17. Bxf4 {[%emt 0:01:23]} Bd7 {[%emt 0:00:12]} 18. Qd2 {[%emt 0:00:28]} Ng5 {[%emt 0:07:10]} 19. Bxg5 {[%emt 0:00:52]} Bxg5 {[%emt 0:00:04]} 20. Qg2 {[%emt 0:00:50]} Qe3+ {[%emt 0:01:59]} 21. Kh1 {[%emt 0:00:24]} Bc6 {[%emt 0:00:17]} 22. Bd5 {[%emt 0:00:09]} Bxd5 {[%emt 0:01:04]} 23. Qxd5 {[%emt 0:00:17]} Qxh3 {[%emt 0:01:23]} 24. Qg2 {[%emt 0:01:00]} Qxg2+ {[%emt 0:00:59]} 25. Kxg2 {[%emt 0:00:01]} Bf6 {[%emt 0:01:46]} 26. c3 {[%emt 0:00:44]} Rfe8 {[%emt 0:00:36]} 27. Rae1 {[%emt 0:00:45]} Kg8 {[%emt 0:00:52]} 28. Nf3 {[%emt 0:00:27]} a5 {[%emt 0:00:27]} 29. Nd2 {[%emt 0:00:35]} d5 {[%emt 0:00:37]} 30. Nb3 {[%emt 0:00:36]} b6 {[%emt 0:00:21]} 31. Kf3 {[%emt 0:00:37]} Kh7 {[%emt 0:00:45]} 32. Nd4 {[%emt 0:00:27]} Bxd4 {[%emt 0:00:26]} 33. cxd4 {[%emt 0:00:03]} Rf8+ {[%emt 0:00:14]} 34. Kg3 {[%emt 0:00:12]} Rxf1 {[%emt 0:00:21]} 35. Rxf1 {[%emt 0:00:05]} Re8 {[%emt 0:00:38]} 36. Rf3 {[%emt 0:00:36]} Kg6 {[%emt 0:00:18]} 37. Kf2 {[%emt 0:00:53]} (37. Rf5 $142) 37... c6 {[%emt 0:00:24]} 38. Rf5 {[%emt 0:00:36]} Re7 {[%emt 0:01:09]} 39. Rh5 {[%emt 0:01:02]} Re6 {[%emt 0:00:29]} 40. Rh2 {[%emt 0:00:36]} Kg5 {[%emt 0:00:12]} 41. Kf3 {[%emt 0:00:10]} g6 {[%emt 0:00:24]} 42. Rc2 {[%emt 0:00:44]} Rf6+ {[%emt 0:00:46]} 43. Kg3 {[%emt 0:00:06]} h5 {[%emt 0:00:04]} 44. gxh5 {[%emt 0:00:29]} gxh5 {[%emt 0:00:08]} 45. Rh2 {[%emt 0:00:34]} Re6 {[%emt 0:00:21]} 46. Kf3 {[%emt 0:00:54]} h4 {[%emt 0:00:16]} 47. Rg2+ {[%emt 0:00:25]} Kh5 {[%emt 0:01:00]} 48. Rg8 $19 {[%emt 0:00:29]} Rf6+ {[%emt 0:00:05]} 49. Ke3 {[%emt 0:00:23]} h3 {[%emt 0:00:20]} 50. Rg1 {[%emt 0:00:46]} Rg6 {[%emt 0:00:54]} 51. Rh1 {[%emt 0:00:30]} Kh4 {[%emt 0:00:12]} 52. Kf3 {[%emt 0:00:29]} Rf6+ {[%emt 0:00:27]} 53. Ke2 {[%emt 0:00:22]} Rf4 {[%emt 0:00:41]} 54. Ke3 {[%emt 0:00:22]} Rg4 {[%emt 0:00:06]} 55. Kf3 {[%emt 0:00:37]} Rg3+ {[%emt 0:00:20]} 56. Kf4 {[%emt 0:00:20]} Rg2 {[%emt 0:00:26]} 57. Rc1 {[%emt 0:00:49]} Rf2+ {[%emt 0:02:21]} (57... h2 $142 58. Rh1 Kh3 (58... Rxb2 $2 59. Rf1 $19)) 58. Ke3 {[%emt 0:00:09]} Rf6 {[%emt 0:00:09]} (58... Kg3 $142 59. b4 axb4 60. Rxc6 Rf3+ 61. Ke2 Kg2) 59. Rg1 {[%emt 0:00:34]} h2 {[%emt 0:00:45]} 60. Rg8 {[%emt 0:00:24]} Rh6 {[%emt 0:00:20]} ({And not} 60... h1=N 61. Rh8+ Kg3 62. Rxh1 $11) 61. Kf4 {[%emt 0:00:28]} h1=Q {[%emt 0:00:35]} 62. Rg4+ {[%emt 0:00:23]} Kh3 {[%emt 0:00:08]} 0-1

[Event "French-ch U16-U18 2024"]
[Site "Agen"]
[Date "2024.04.21"]
[Round "9.4"]
[White "Delmouly, Manon"]
[Black "Tran, Ky Lan"]
[Result "1-0"]
[ECO "D84"]
[WhiteElo "1800"]
[BlackElo "1724"]
[Annotator "NA RC COMBH"]
[PlyCount "95"]
[EventDate "2024.04.14"]
[EventType "swiss"]
[EventCountry "FRA"]
[SourceTitle "playchess.com"]
[Source "ChessBase"]
[SourceQuality "1"]
[TimeControl "5400+30"]

1. d4 {[%emt 0:00:04]} Nf6 {[%emt 0:00:06]} 2. c4 {[%emt 0:00:13]} g6 {[%emt 0:00:06]} 3. Nc3 {[%emt 0:00:13]} d5 {[%emt 0:00:06]} 4. Bf4 {[%emt 0:00:20]} Bg7 {[%emt 0:00:41]} 5. e3 {[%emt 0:00:14]} O-O {[%emt 0:00:17]} 6. cxd5 {[%emt 0:00:29]} Nxd5 {[%emt 0:00:23]} 7. Nxd5 {[%emt 0:00:10]} Qxd5 {[%emt 0:00:48]} 8. Bxc7 {[%emt 0:00:13]} Nc6 {[%emt 0:02:21]} 9. Ne2 {[%emt 0:01:23]} b6 {[%emt 0:01:30] D84: Grünfeld: 4 Bf4 Bg7 5 e3 0-0 6 cxd5.} 10. Nc3 {[%emt 0:01:29]} Qd7 {[%emt 0:00:25]} 11. Bg3 {[%emt 0:01:10]} e6 {[%emt 0:01:47]} 12. Be2 {[%emt 0:01:58]} Bb7 {[%emt 0:01:40]} 13. O-O {[%emt 0:02:20]} Rac8 {[%emt 0:06:30]} 14. Rc1 {[%emt 0:03:28]} Rfd8 {[%emt 0:13:22]} 15. Qa4 {[%emt 0:12:31]} h6 {[%emt 0:11:16]} 16. Bf3 {[%emt 0:03:28]} Kh7 {[%emt 0:07:56]} 17. Rfd1 {[%emt 0:01:38]} Na5 {[%emt 0:02:31]} 18. Qxd7 {[%emt 0:06:24]} Rxd7 {[%emt 0:00:02]} 19. Bxb7 {[%emt 0:00:55]} Nxb7 {[%emt 0:00:18]} 20. Nb5 {[%emt 0:01:52]} Rxc1 {[%emt 0:01:04]} 21. Rxc1 $18 {[%emt 0:00:11]} Nd8 {[%emt 0:02:23]} (21... a6 $142) 22. Kf1 {[%emt 0:07:59]} g5 {[%emt 0:02:04]} 23. Rc3 {[%emt 0:12:27]} f5 {[%emt 0:02:26]} 24. Bc7 {[%emt 0:01:11]} a6 {[%emt 0:00:45]} 25. Bxd8 {[%emt 0:00:16]} Rxd8 {[%emt 0:00:03]} 26. Nc7 {[%emt 0:00:09]} e5 {[%emt 0:02:14]} 27. Ne6 {[%emt 0:17:27]} ({Less strong is} 27. Nxa6 exd4 28. Rd3 Rc8 $14 (28... Ra8 29. Nc7 $11)) 27... exd4 {[%emt 0:02:38]} 28. Rc7 {[%emt 0:00:37]} Rg8 {[%emt 0:00:19]} 29. Nxd4 {[%emt 0:07:53]} f4 {[%emt 0:02:26]} 30. exf4 {[%emt 0:00:53]} gxf4 {[%emt 0:00:13]} 31. Ne6 {[%emt 0:01:18]} Kh8 {[%emt 0:00:34]} 32. Nxg7 {[%emt 0:02:48]} Rxg7 {[%emt 0:00:08]} 33. Rxg7 {[%emt 0:00:18]} Kxg7 {[%emt 0:00:01]} 34. Ke2 {[%emt 0:00:10]} Kf6 {[%emt 0:00:06]} 35. Kf3 {[%emt 0:00:05]} Kf5 {[%emt 0:00:13]} 36. g3 {[%emt 0:00:11]} fxg3 {[%emt 0:00:11]} 37. hxg3 {[%emt 0:00:15]} h5 {[%emt 0:00:22]} 38. a4 {[%emt 0:06:10]} a5 {[%emt 0:00:28]} 39. Ke3 {[%emt 0:01:28]} Kg4 {[%emt 0:00:36]} 40. f4 {[%emt 0:03:12]} Kxg3 {[%emt 0:05:02]} 41. f5 {[%emt 0:00:08]} h4 {[%emt 0:00:09]} 42. f6 {[%emt 0:00:04]} h3 {[%emt 0:00:07]} 43. f7 {[%emt 0:00:03]} h2 {[%emt 0:00:07]} 44. f8=Q {[%emt 0:00:15]} h1=Q {[%emt 0:00:18]} 45. Qg7+ {[%emt 0:00:12]} Kh3 {[%emt 0:00:52]} 46. Qh6+ {[%emt 0:00:08]} Kg2 {[%emt 0:00:09]} 47. Qxh1+ {[%emt 0:00:06]} Kxh1 {[%emt 0:00:07]} 48. Kd4 {[%emt 0:00:09]} 1-0

[Event "French-ch U16-U18 2024"]
[Site "Agen"]
[Date "2024.04.21"]
[Round "9.5"]
[White "Langer, Karele"]
[Black "Lavilledieu, Lily-Mei"]
[Result "0-1"]
[ECO "B18"]
[WhiteElo "1654"]
[BlackElo "1783"]
[Annotator "NA RC COMBH"]
[PlyCount "102"]
[EventDate "2024.04.14"]
[EventType "swiss"]
[EventCountry "FRA"]
[SourceTitle "playchess.com"]
[Source "ChessBase"]
[SourceQuality "1"]
[TimeControl "5400+30"]

1. e4 {[%emt 0:00:06]} c6 {[%emt 0:01:00]} 2. d4 {[%emt 0:00:08]} d5 {[%emt 0:00:02]} 3. Nc3 {[%emt 0:00:11]} dxe4 {[%emt 0:00:06]} 4. Nxe4 {[%emt 0:00:17]} Bf5 {[%emt 0:00:02]} 5. Ng3 {[%emt 0:00:24]} Bg6 {[%emt 0:00:02]} 6. Nh3 {[%emt 0:00:30]} Nd7 {[%emt 0:02:27]} 7. Nf4 {[%emt 0:02:01]} e5 {[%emt 0:00:12]} 8. dxe5 {[%emt 0:14:31]} Qa5+ {[%emt 0:04:08]} 9. c3 {[%emt 0:05:43]} Qxe5+ {[%emt 0:04:28]} 10. Qe2 {[%emt 0:00:20]} O-O-O {[%emt 0:01:20]} 11. Qxe5 {[%emt 0:00:34]} Nxe5 {[%emt 0:00:13]} 12. Be2 {[%emt 0:03:19]} Bc5 {[%emt 0:04:42]} 13. O-O {[%emt 0:03:29]} Nh6 {[%emt 0:03:54]} 14. Nxg6 {[%emt 0:06:36]} hxg6 {[%emt 0:00:13]} 15. h3 {[%emt 0:05:27]} Nd3 {[%emt 0:03:46]} 16. Ne4 {[%emt 0:08:19]} Bb6 {[%emt 0:08:46]} 17. Rd1 {[%emt 0:04:16]} f5 {[%emt 0:09:35]} 18. Rxd3 {[%emt 0:05:51]} fxe4 {[%emt 0:01:33]} 19. Rxd8+ {[%emt 0:01:08]} Kxd8 {[%emt 0:00:26]} 20. Bf4 {[%emt 0:08:03]} Rf8 {[%emt 0:03:30]} 21. g3 {[%emt 0:02:59]} Ke8 {[%emt 0:01:48]} 22. Rf1 {[%emt 0:00:56]} Nf5 {[%emt 0:01:50]} 23. Kh2 {[%emt 0:02:33]} Ne7 {[%emt 0:05:38]} 24. h4 {[%emt 0:06:44]} Nd5 {[%emt 0:04:46]} 25. Be5 {[%emt 0:03:23]} Bxf2 {[%emt 0:04:09]} 26. Bxg7 {[%emt 0:01:53]} Rf7 {[%emt 0:01:13]} 27. Bd4 {[%emt 0:01:06]} e3 {[%emt 0:01:23]} 28. Kg2 {[%emt 0:01:49]} Rd7 {[%emt 0:08:14]} 29. Bg4 {[%emt 0:02:53]} Rd8 {[%emt 0:05:23]} 30. Rd1 {[%emt 0:04:15]} c5 {[%emt 0:03:35]} 31. Bxc5 {[%emt 0:01:43]} e2 {[%emt 0:00:28]} 32. Bxe2 {[%emt 0:02:33]} Bxc5 {[%emt 0:00:08]} 33. Bb5+ {[%emt 0:00:24]} Ke7 {[%emt 0:00:29]} 34. Re1+ {[%emt 0:00:41]} Kd6 {[%emt 0:00:12]} 35. Kh3 {[%emt 0:01:22]} Ne3 {[%emt 0:03:05]} 36. b4 {[%emt 0:00:40]} Bb6 {[%emt 0:00:46]} 37. c4 {[%emt 0:00:01]} Bd4 {[%emt 0:00:18]} 38. Re2 {[%emt 0:00:45]} a6 {[%emt 0:00:42]} 39. Ba4 {[%emt 0:00:52]} Nxc4 {[%emt 0:00:22]} 40. Bb3 {[%emt 0:00:42]} b5 {[%emt 0:00:26]} 41. Re4 {[%emt 0:00:46]} Kd5 {[%emt 0:01:19]} 42. Rg4 {[%emt 0:00:16]} Rd6 {[%emt 0:00:38]} 43. Rg5+ {[%emt 0:00:46]} Kc6 {[%emt 0:00:02]} 44. a4 {[%emt 0:00:30]} Nd2 {[%emt 0:01:07]} 45. Bc2 {[%emt 0:00:02]} bxa4 {[%emt 0:02:16]} 46. Bxa4+ {[%emt 0:00:02]} Kb6 {[%emt 0:00:10]} 47. Bc2 {[%emt 0:00:22]} Nf3 {[%emt 0:00:10]} 48. Rg4 {[%emt 0:00:53]} Ne5 {[%emt 0:00:25]} 49. Rg5 {[%emt 0:00:25]} Re6 {[%emt 0:00:34]} 50. Bb3 {[%emt 0:01:17]} Re7 {[%emt 0:00:28]} 51. Bc2 {[%emt 0:00:37]} Be3 {[%emt 0:00:22]} 0-1